fUSD/lending_fUSD_20240121
["ID","MTS","AMOUNT","RATE_DAILY","PERIOD"]
[312444270,1705876591601,-500.0,0.00046027,31]
[312444271,1705876591632,-847.51,0.00046027,31]
[312444272,1705876591665,-583.74,0.00046027,31]
[312444273,1705876591698,-614.24,0.00046027,31]
[312444274,1705876591730,-254.36296815,0.00046027,31]
[312444275,1705876591763,-500.0,0.00046027,31]
[312444276,1705876591796,-500.0,0.00046027,31]
[312444277,1705876591828,-500.0,0.00046027,31]
[312444278,1705876591861,-500.0,0.00046027,31]
[312444279,1705876591894,-640.11,0.00046027,31]
[312444280,1705876591927,-640.18,0.00046027,31]
[312444281,1705876591960,-503.74,0.00046027,31]
[312444282,1705876591992,-1125.5,0.00046027,31]
[312444283,1705876592031,-500.0,0.00046027,31]
[312444284,1705876592064,-553.42,0.00046027,31]
[312444285,1705876592098,-706.24,0.00046027,31]
[312444286,1705876592133,-500.0,0.00046027,31]
[312444287,1705876592168,-759.04,0.00046027,31]
[312444288,1705876592203,-500.0,0.00046027,31]
[312444289,1705876592242,-618.9,0.00046027,31]
[312444290,1705876592278,-620.1,0.00046027,31]
[312444291,1705876592311,-751.8,0.00046027,31]
[312444292,1705876592344,-596.28,0.00046027,31]
[312444293,1705876592378,-791.81,0.00046027,31]
[312444294,1705876592411,-9012.61,0.00046027,31]
[312444295,1705876592444,-1020.43,0.00046027,31]
[312444296,1705876592478,-730.33,0.00046027,31]
[312444297,1705876592510,-500.0,0.00046027,31]
[312444298,1705876592546,-500.0,0.00046027,31]
[312444299,1705876592579,-856.84,0.00046027,31]
[312444300,1705876592611,-500.0,0.00046027,31]
[312444301,1705876592644,-500.0,0.00046027,31]
[312444302,1705876592676,-735.19,0.00046027,31]
[312444303,1705876592709,-500.0,0.00046027,31]
[312444304,1705876592741,-500.0,0.00046027,31]
[312444305,1705876592774,-830.88,0.00046027,31]
[312444306,1705876592806,-2377.26,0.00046027,31]
[312444307,1705876592839,-766.87,0.00046027,31]
[312444308,1705876592871,-500.0,0.00046027,31]
[312444309,1705876592913,-500.0,0.00046027,31]
[312444310,1705876592947,-500.0,0.00046027,31]
[312444311,1705876592980,-1112.8,0.00046027,31]
[312444312,1705876593015,-881.88,0.00046027,31]
[312444313,1705876593052,-1038.39,0.00046027,31]
[312444314,1705876593086,-641.2,0.00046027,31]
[312444315,1705876593121,-647.93,0.00046027,31]
[312444316,1705876593154,-666.36,0.00046027,31]
[312444317,1705876593187,-4639.17,0.00046027,31]
[312444318,1705876593223,-673.21,0.00046027,31]
[312444319,1705876593259,-3298.95,0.00046027,31]
[312444320,1705876593293,-500.0,0.00046027,31]
[312444321,1705876593327,-992.34,0.00046027,31]
[312444322,1705876593362,-2034.53,0.00046027,31]
[312444323,1705876593397,-660.28,0.00046027,31]
[312444324,1705876593433,-500.0,0.00046027,31]
[312444325,1705876593473,-500.0,0.00046027,31]
[312444326,1705876593509,-28036.98,0.00046027,31]
[312444327,1705876593542,-1938.75,0.00046027,31]
[312444328,1705876593576,-549.75,0.00046027,31]
[312444329,1705876593610,-903.34,0.00046027,31]
[312444330,1705876593645,-3123.65,0.00046027,31]
[312444331,1705876593679,-1216.46,0.00046027,31]
[312444332,1705876593711,-1029.32,0.00046027,31]
[312444333,1705876593743,-686.97,0.00046027,31]
[312444334,1705876593782,-1296.81,0.00046027,31]
[312444335,1705876593821,-2125.13,0.00046027,31]
[312444336,1705876593854,-1186.92,0.00046027,31]
[312444337,1705876593887,-2234.56,0.00046027,31]
[312444338,1705876593919,-1017.01,0.00046027,31]
[312444339,1705876593952,-1214.61,0.00046027,31]
[312444340,1705876593985,-500.0,0.00046027,31]
[312444341,1705876594022,-550.46,0.00046027,31]
[312444342,1705876594057,-980.04,0.00046027,31]
[312444343,1705876594088,-500.0,0.00046027,31]
[312444344,1705876594123,-764.47,0.00046027,31]
[312444345,1705876594156,-500.0,0.00046027,31]
[312444346,1705876594190,-692.17,0.00046027,31]
[312444347,1705876594223,-589.26,0.00046027,31]
[312444348,1705876594256,-500.0,0.00046027,31]
[312444349,1705876594290,-4050.53,0.00046027,31]
[312444350,1705876594323,-790.3,0.00046027,31]
[312444351,1705876594356,-1409.68,0.00046027,31]
[312444352,1705876594389,-884.87,0.00046027,31]
[312444353,1705876594421,-500.0,0.00046027,31]
[312444354,1705876594455,-8615.3,0.00046027,31]
[312444355,1705876594486,-650.65,0.00046027,31]
[312444356,1705876594518,-1164.14,0.00046027,31]
[312444357,1705876594550,-509.39,0.00046027,31]
[312444358,1705876594582,-500.39,0.00046027,31]
[312444359,1705876594616,-1317.68,0.00046027,31]
[312444360,1705876594649,-500.0,0.00046027,31]
[312444361,1705876594682,-773.48,0.00046027,31]
[312444362,1705876594715,-500.0,0.00046027,31]
[312444363,1705876594747,-500.0,0.00046027,31]
[312444364,1705876594779,-500.0,0.00046027,31]
[312444365,1705876594813,-500.0,0.00046027,31]
[312444366,1705876594845,-687.04,0.00046027,31]
[312444367,1705876594878,-2437.34,0.00046027,31]
[312444368,1705876594911,-500.0,0.00046027,31]
[312444369,1705876595110,-2353.8,0.00046027,31]
[312444370,1705876595148,-2671.1,0.00046027,31]
[312444371,1705876595188,-1627.9,0.00046027,31]
[312444372,1705876595224,-500.0,0.00046027,31]
[312444373,1705876595260,-701.03,0.00046027,31]
[312444374,1705876595294,-744.64,0.00046027,31]
[312444375,1705876595330,-722.25,0.00046027,31]
[312444376,1705876595368,-1057.32,0.00046027,31]
[312444377,1705876595405,-2605.29,0.00046027,31]
[312444378,1705876595442,-500.0,0.00046027,31]
[312444379,1705876595480,-269.65787306,0.00046027,31]
[312444380,1705876595514,-1869.91,0.00046027,31]
[312444381,1705876595550,-853.42,0.00046027,31]
[312444382,1705876595584,-628.07,0.00046027,31]
[312444383,1705876595618,-524.74030901,0.00046027,31]
[312444384,1705876595653,-500.0,0.00046027,31]
[312444385,1705876595687,-500.0,0.00046027,31]
[312444386,1705876595723,-1463.45,0.00046027,31]
[312444387,1705876595759,-500.0,0.00046027,31]
[312444388,1705876595796,-738.08,0.00046027,31]
[312444389,1705876595831,-1856.37,0.00046027,31]
[312444390,1705876595866,-2717.95,0.00046027,31]
[312444391,1705876595901,-500.0,0.00046027,31]
[312444392,1705876595936,-671.9,0.00046027,31]
[312444393,1705876595969,-500.0,0.00046027,31]
[312444394,1705876596001,-3818.85,0.00046027,31]
[312444395,1705876596035,-576.78,0.00046027,31]
[312444396,1705876596068,-685.5,0.00046027,31]
[312444397,1705876596102,-1834.73,0.00046027,31]
[312444398,1705876596136,-782.28,0.00046027,31]
[312444399,1705876596170,-801.69,0.00046027,31]
[312444400,1705876596204,-7874.08,0.00046027,31]
[312444401,1705876596239,-508.28,0.00046027,31]
[312444402,1705876596274,-1665.66,0.00046027,31]
[312444403,1705876596310,-1435.39,0.00046027,31]
[312444404,1705876596343,-500.0,0.00046027,31]
[312444405,1705876596379,-3052.12,0.00046027,31]
[312444406,1705876596415,-1882.97,0.00046027,31]
[312444407,1705876596450,-1653.87,0.00046027,31]
[312444408,1705876596485,-500.0,0.00046027,31]
[312444409,1705876596519,-670.83,0.00046027,31]
[312444410,1705876596553,-500.0,0.00046027,31]
[312444411,1705876596587,-705.2,0.00046027,31]
[312444412,1705876596620,-782.76,0.00046027,31]
[312444413,1705876596654,-500.0,0.00046027,31]
[312444414,1705876596686,-500.0,0.00046027,31]
[312444415,1705876596723,-794.26,0.00046027,31]
[312444416,1705876596756,-711.05,0.00046027,31]
[312444417,1705876596790,-500.0,0.00046027,31]
[312444418,1705876596825,-1594.26,0.00046027,31]
[312444419,1705876596859,-3948.71,0.00046027,31]
[312444420,1705876596892,-1147.94,0.00046027,31]
[312444421,1705876596926,-500.0,0.00046027,31]
[312444422,1705876596959,-2653.24,0.00046027,31]
[312444423,1705876596992,-1622.79,0.00046027,31]
[312444424,1705876597028,-887.82,0.00046027,31]
[312444425,1705876597061,-2192.06,0.00046027,31]
[312444426,1705876597100,-500.19,0.00046027,31]
[312444427,1705876597137,-4489.98,0.00046027,31]
[312444428,1705876597173,-981.16,0.00046027,31]
[312444429,1705876597212,-500.0,0.00046027,31]
[312444430,1705876597249,-500.0,0.00046027,31]
[312444431,1705876597286,-500.0,0.00046027,31]
[312444432,1705876597320,-500.0,0.00046027,31]
[312444433,1705876597354,-529.53,0.00046027,31]
[312444434,1705876597388,-2135.06,0.00046027,31]
[312444435,1705876597420,-524.77,0.00046027,31]
[312444436,1705876597455,-500.0,0.00046027,31]
[312444437,1705876597488,-1015.89,0.00046027,31]
[312444438,1705876597521,-863.57,0.00046027,31]
[312444439,1705876597555,-528.03,0.00046027,31]
[312444440,1705876597588,-2514.68,0.00046027,31]
[312444441,1705876597621,-748.59,0.00046027,31]
[312444442,1705876597653,-1005.16,0.00046027,31]
[312444443,1705876597685,-257.0,0.0004628,30]
[312444444,1705876597718,-597.66,0.00046301,30]
[312444445,1705876597749,-204.0,0.0004631,30]
[312444446,1705876597781,-203.0,0.0004631,30]
[312444447,1705876597816,-151.81777713,0.00046338,30]
[312444448,1705876597847,-693.71710091,0.00046388,60]
[312444449,1705876597878,-350.0,0.00046411,120]
[312444450,1705876597909,-765.0,0.00046443,30]
[312444451,1705876597941,-82052.0,0.00046443,30]
[312444452,1705876597973,-2227.251623,0.00046548,120]
[312444453,1705876598005,-597.66,0.00046575,30]
[312444454,1705876598038,-500.0,0.00046575,31]
[312444455,1705876598071,-500.0,0.00046575,31]
[312444456,1705876598105,-568.04,0.00046575,31]
[312444457,1705876598138,-500.0,0.00046575,31]
[312444458,1705876598171,-639.97206743,0.00046575,31]
[312444459,1705876598203,-523.93,0.00046575,31]
[312444460,1705876598235,-500.0,0.00046575,31]
[312444461,1705876598266,-500.0,0.00046575,31]
[312444462,1705876598299,-500.0,0.00046575,31]
[312444463,1705876598333,-500.0,0.00046575,31]
[312444464,1705876598369,-500.0,0.00046575,31]
[312444465,1705876598405,-218.93888891,0.00046575,31]
[312444466,1705876598441,-500.0,0.00046575,31]
[312444467,1705876598477,-500.0,0.00046575,31]
[312444468,1705876598510,-516.25,0.00046575,31]
[312444469,1705876598541,-500.0,0.00046575,31]
[312444470,1705876598573,-579.47,0.00046575,31]
[312444471,1705876598605,-500.0,0.00046575,31]
[312444472,1705876598786,-500.0,0.00046575,31]
[312444473,1705876598826,-500.0,0.00046575,31]
[312444474,1705876598859,-500.0,0.00046575,31]
[312444475,1705876598892,-500.0,0.00046575,31]
[312444476,1705876598925,-500.0,0.00046575,31]
[312444477,1705876598957,-500.0,0.00046575,31]
[312444478,1705876598990,-500.0,0.00046575,31]
[312444479,1705876599025,-500.0,0.00046575,31]
[312444480,1705876599059,-509.28,0.00046575,31]
[312444481,1705876599092,-500.0,0.00046575,31]
[312444482,1705876599126,-500.0,0.00046575,31]
[312444483,1705876599159,-604.77527241,0.00046575,31]
[312444484,1705876599191,-500.0,0.00046575,31]
[312444485,1705876599225,-500.0,0.00046575,31]
[312444486,1705876599259,-508.85,0.00046575,31]
[312444487,1705876599294,-608.21,0.00046575,31]
[312444488,1705876599328,-579.63,0.00046575,31]
[312444489,1705876599361,-500.0,0.00046575,31]
[312444490,1705876599394,-500.0,0.00046575,31]
[312444491,1705876599427,-598.31,0.00046575,31]
[312444492,1705876599460,-500.0,0.00046575,31]
[312444493,1705876599494,-500.0,0.00046575,31]
[312444494,1705876599528,-785.88,0.00046575,31]
[312444495,1705876599561,-529.13,0.00046575,31]
[312444496,1705876599595,-621.63905308,0.00046575,31]
[312444497,1705876599630,-500.0,0.00046575,31]
[312444498,1705876599665,-500.0,0.00046575,31]
[312444499,1705876599699,-500.0,0.00046575,31]
[312444500,1705876599733,-500.0,0.00046575,31]
[312444501,1705876599766,-500.0,0.00046575,30]
[312444502,1705876599800,-500.0,0.00046575,31]
[312444503,1705876599835,-500.0,0.00046575,31]
[312444504,1705876599870,-500.0,0.00046575,31]
[312444505,1705876599906,-1369.47,0.00046575,31]
[312444506,1705876599941,-505.47,0.00046575,31]
[312444507,1705876599976,-806.13,0.00046575,31]
[312444508,1705876600010,-500.0,0.00046575,31]
[312444509,1705876600047,-500.0,0.00046575,31]
[312444510,1705876600081,-500.0,0.00046575,31]
[312444511,1705876600116,-707.32,0.00046575,31]
[312444512,1705876600151,-500.0,0.00046575,31]
[312444513,1705876600186,-500.0,0.00046575,31]
[312444514,1705876600222,-500.0,0.00046575,31]
[312444515,1705876600258,-500.0,0.00046575,31]
[312444516,1705876600292,-552.64,0.00046575,31]
[312444517,1705876600326,-500.0,0.00046575,31]
[312444518,1705876600359,-805.58,0.00046575,31]
[312444519,1705876600394,-272.59,0.00046575,31]
[312444520,1705876600429,-605.93,0.00046575,31]
[312444521,1705876600463,-1097.88,0.00046575,31]
[312444522,1705876600496,-268.08,0.00046575,30]
[312444523,1705876600529,-500.0,0.00046575,31]
[312444524,1705876600564,-845.1,0.00046575,31]
[312444525,1705876600598,-500.0,0.00046575,31]
[312444526,1705876600633,-788.32,0.00046575,31]
[312444527,1705876600667,-720.24,0.00046575,31]
[312444528,1705876600701,-521.41,0.00046575,31]
[312444529,1705876600736,-518.74,0.00046575,31]
[312444530,1705876600770,-500.0,0.00046575,31]
[312444531,1705876600806,-500.0,0.00046575,31]
[312444532,1705876600840,-500.0,0.00046575,31]
[312444533,1705876600873,-500.0,0.00046575,31]
[312444534,1705876600907,-500.0,0.00046575,31]
[312444535,1705876600942,-1173.58,0.00046575,31]
[312444536,1705876600974,-810.11,0.00046575,31]
[312444537,1705876601008,-547.76,0.00046575,31]
[312444538,1705876601041,-898.08,0.00046575,31]
[312444539,1705876601076,-500.0,0.00046575,31]
[312444540,1705876601111,-1249.82,0.00046575,31]
[312444541,1705876601144,-500.0,0.00046575,31]
[312444542,1705876601178,-644.21,0.00046575,31]
[312444543,1705876601214,-598.75,0.00046575,31]
[312444544,1705876601250,-500.0,0.00046575,31]
[312444545,1705876601283,-1092.57,0.00046575,31]
[312444546,1705876601315,-1011.23,0.00046575,31]
[312444547,1705876601347,-860.96,0.00046575,31]
[312444548,1705876601381,-500.0,0.00046575,31]
[312444549,1705876601416,-500.0,0.00046575,31]
[312444550,1705876601452,-500.0,0.00046575,31]
[312444551,1705876601486,-1118.43,0.00046575,31]
[312444552,1705876601520,-749.11,0.00046575,31]
[312444553,1705876601553,-500.0,0.00046575,31]
[312444554,1705876601586,-731.16,0.00046575,31]
[312444555,1705876601618,-723.92,0.00046575,31]
[312444556,1705876601652,-500.0,0.00046575,31]
[312444557,1705876601685,-500.0,0.00046575,31]
[312444558,1705876601719,-500.0,0.00046575,31]
[312444559,1705876601753,-500.0,0.00046575,31]
[312444560,1705876601787,-654.99,0.00046575,31]
[312444561,1705876601822,-1172.22,0.00046575,31]
[312444562,1705876601854,-1046.22,0.00046575,31]
[312444563,1705876601887,-785.66,0.00046575,31]
[312444564,1705876601919,-500.0,0.00046575,31]
[312444565,1705876601959,-643.91,0.00046575,31]
[312444566,1705876601993,-501.64,0.00046575,31]
[312444567,1705876602028,-500.0,0.00046575,31]
[312444568,1705876602060,-500.0,0.00046575,31]
[312444569,1705876602094,-562.71,0.00046575,31]
[312444570,1705876602130,-552.21,0.00046575,31]
[312444571,1705876602163,-500.0,0.00046575,31]
[312444572,1705876602197,-708.83,0.00046575,31]
[312444573,1705876602229,-500.0,0.00046575,31]
[312444574,1705876602263,-1106.03,0.00046575,31]
[312444575,1705876602295,-645.89,0.00046575,31]
[312444576,1705876602497,-500.0,0.00046575,31]
[312444577,1705876602538,-646.94,0.00046575,31]
[312444578,1705876602573,-500.0,0.00046575,31]
[312444579,1705876602607,-550.125406,0.00046575,31]
[312444580,1705876602645,-500.0,0.00046575,31]
[312444581,1705876602679,-2098.17,0.00046575,31]
[312444582,1705876602712,-941.47,0.00046575,31]
[312444583,1705876602744,-500.0,0.00046575,31]
[312444584,1705876602777,-797.7,0.00046575,31]
[312444585,1705876602811,-635.48,0.00046575,31]
[312444586,1705876602845,-581.22,0.00046575,31]
[312444587,1705876602880,-1051.73,0.00046575,31]
[312444588,1705876602915,-611.42,0.00046575,31]
[312444589,1705876602949,-500.0,0.00046575,31]
[312444590,1705876602981,-992.54,0.00046575,31]
[312444591,1705876603015,-500.0,0.00046575,31]
[312444592,1705876603054,-565.87,0.00046575,31]
[312444593,1705876603088,-500.0,0.00046575,31]
[312444594,1705876603121,-588.35,0.00046575,31]
[312444595,1705876603154,-709.96,0.00046575,31]
[312444596,1705876603189,-500.0,0.00046575,31]
[312444597,1705876603225,-500.0,0.00046575,31]
[312444598,1705876603259,-679.91,0.00046575,31]
[312444599,1705876603293,-500.0,0.00046575,31]
[312444600,1705876603327,-826.78,0.00046575,31]
[312444601,1705876603361,-550.18,0.00046575,31]
[312444602,1705876603395,-1072.37,0.00046575,31]
[312444603,1705876603428,-561.03,0.00046575,31]
[312444604,1705876603464,-500.0,0.00046575,31]
[312444605,1705876603498,-722.05,0.00046575,31]
[312444606,1705876603532,-1048.9,0.00046575,31]
[312444607,1705876603565,-500.0,0.00046575,31]
[312444608,1705876603599,-500.32,0.00046575,31]
[312444609,1705876603632,-675.32,0.00046575,31]
[312444610,1705876603665,-574.76,0.00046575,31]
[312444611,1705876603698,-1933.9,0.00046575,31]
[312444612,1705876603734,-595.6,0.00046575,31]
[312444613,1705876603769,-500.0,0.00046575,31]
[312444614,1705876603803,-847.51,0.00046575,31]
[312444615,1705876603836,-583.74,0.00046575,31]
[312444616,1705876603868,-614.24,0.00046575,31]
[312444617,1705876603900,-500.0,0.00046575,31]
[312444618,1705876603932,-500.0,0.00046575,31]
[312444619,1705876603971,-500.0,0.00046575,31]
[312444620,1705876604005,-500.0,0.00046575,31]
[312444621,1705876604039,-640.11,0.00046575,31]
[312444622,1705876604076,-640.18,0.00046575,31]
[312444623,1705876604110,-503.74,0.00046575,31]
[312444624,1705876604145,-1125.5,0.00046575,31]
[312444625,1705876604179,-500.0,0.00046575,31]
[312444626,1705876604213,-553.42,0.00046575,31]
[312444627,1705876604246,-706.24,0.00046575,31]
[312444628,1705876604281,-500.0,0.00046575,31]
[312444629,1705876604315,-759.04,0.00046575,31]
[312444630,1705876604349,-500.0,0.00046575,31]
[312444631,1705876604382,-618.9,0.00046575,31]
[312444632,1705876604416,-620.1,0.00046575,31]
[312444633,1705876604449,-751.8,0.00046575,31]
[312444634,1705876604488,-596.28,0.00046575,31]
[312444635,1705876604522,-791.81,0.00046575,31]
[312444636,1705876604555,-9012.61,0.00046575,31]
[312444637,1705876604587,-1020.43,0.00046575,31]
[312444638,1705876604620,-730.33,0.00046575,31]
[312444639,1705876604652,-500.0,0.00046575,31]
[312444640,1705876604685,-500.0,0.00046575,31]
[312444641,1705876604718,-856.84,0.00046575,31]
[312444642,1705876604750,-500.0,0.00046575,31]
[312444643,1705876604782,-500.0,0.00046575,31]
[312444644,1705876604815,-735.19,0.00046575,31]
[312444645,1705876604849,-500.0,0.00046575,31]
[312444646,1705876604882,-500.0,0.00046575,31]
[312444647,1705876604913,-830.88,0.00046575,31]
[312444648,1705876604948,-2377.26,0.00046575,31]
[312444649,1705876604979,-766.87,0.00046575,31]
[312444650,1705876605011,-423.83505298,0.00046575,31]
[312444651,1705876605045,-500.0,0.00046575,31]
[312444652,1705876605081,-500.0,0.00046575,31]
[312444653,1705876605114,-1112.8,0.00046575,31]
[312444654,1705876605149,-881.88,0.00046575,31]
[312444655,1705876605183,-1038.39,0.00046575,31]
[312444656,1705876605217,-641.2,0.00046575,31]
[312444657,1705876605251,-647.93,0.00046575,31]
[312444658,1705876605285,-666.36,0.00046575,31]
[312444659,1705876605320,-4639.17,0.00046575,31]
[312444660,1705876605354,-673.21,0.00046575,31]
[312444661,1705876605388,-3298.95,0.00046575,31]
[312444662,1705876605421,-992.34,0.00046575,31]
[312444663,1705876605454,-2034.53,0.00046575,31]
[312444664,1705876605487,-660.28,0.00046575,31]
[312444665,1705876605520,-500.0,0.00046575,31]
[312444666,1705876605553,-500.0,0.00046575,31]
[312444667,1705876605586,-500.0,0.00046575,31]
[312444668,1705876605622,-28036.98,0.00046575,31]
[312444669,1705876605655,-1938.75,0.00046575,31]
[312444670,1705876605691,-549.75,0.00046575,31]
[312444671,1705876605736,-903.34,0.00046575,31]
[312444672,1705876605774,-3123.65,0.00046575,31]
[312444673,1705876605808,-1216.46,0.00046575,31]
[312444674,1705876605841,-1029.32,0.00046575,31]
[312444675,1705876605875,-686.97,0.00046575,31]
[312444676,1705876605909,-1296.81,0.00046575,31]
[312444677,1705876605942,-2125.13,0.00046575,31]
[312444678,1705876605975,-1186.92,0.00046575,31]
[312444679,1705876606008,-2234.56,0.00046575,31]
[312444680,1705876606201,-1017.01,0.00046575,31]
[312444681,1705876606240,-1214.61,0.00046575,31]
[312444682,1705876606277,-500.0,0.00046575,31]
[312444683,1705876606312,-550.46,0.00046575,31]
[312444684,1705876606346,-980.04,0.00046575,31]
[312444685,1705876606380,-216.5844912,0.00046575,31]
[312444686,1705876606416,-764.47,0.00046575,31]
[312444687,1705876606450,-500.0,0.00046575,31]
[312444688,1705876606483,-692.17,0.00046575,31]
[312444689,1705876606516,-589.26,0.00046575,31]
[312444690,1705876606548,-500.0,0.00046575,31]
[312444691,1705876606582,-4050.53,0.00046575,31]
[312444692,1705876606615,-790.3,0.00046575,31]
[312444693,1705876606647,-1409.68,0.00046575,31]
[312444694,1705876606681,-884.87,0.00046575,31]
[312444695,1705876606715,-500.0,0.00046575,31]
[312444696,1705876606749,-8615.3,0.00046575,31]
[312444697,1705876606787,-650.65,0.00046575,31]
[312444698,1705876606821,-1164.14,0.00046575,31]
[312444699,1705876606853,-509.39,0.00046575,31]
[312444700,1705876606887,-500.39,0.00046575,31]
[312444701,1705876606920,-1317.68,0.00046575,31]
[312444702,1705876606952,-500.0,0.00046575,31]
[312444703,1705876606986,-773.48,0.00046575,31]
[312444704,1705876607022,-500.0,0.00046575,31]
[312444705,1705876607057,-500.0,0.00046575,31]
[312444706,1705876607092,-500.0,0.00046575,31]
[312444707,1705876607129,-500.0,0.00046575,31]
[312444708,1705876607167,-687.04,0.00046575,31]
[312444709,1705876607207,-2437.34,0.00046575,31]
[312444710,1705876607245,-500.0,0.00046575,31]
[312444711,1705876607281,-2353.8,0.00046575,31]
[312444712,1705876607318,-2671.1,0.00046575,31]
[312444713,1705876607353,-1627.9,0.00046575,31]
[312444714,1705876607388,-500.0,0.00046575,31]
[312444715,1705876607423,-701.03,0.00046575,31]
[312444716,1705876607455,-744.64,0.00046575,31]
[312444717,1705876607487,-722.25,0.00046575,31]
[312444718,1705876607519,-1057.32,0.00046575,31]
[312444719,1705876607552,-2605.29,0.00046575,31]
[312444720,1705876607584,-500.0,0.00046575,31]
[312444721,1705876607616,-1869.91,0.00046575,31]
[312444722,1705876607647,-628.07,0.00046575,31]
[312444723,1705876607678,-853.42,0.00046575,31]
[312444724,1705876607710,-500.0,0.00046575,31]
[312444725,1705876607743,-500.0,0.00046575,31]
[312444726,1705876607776,-1463.45,0.00046575,31]
[312444727,1705876607810,-500.0,0.00046575,31]
[312444728,1705876607843,-738.08,0.00046575,31]
[312444729,1705876607875,-1856.37,0.00046575,31]
[312444730,1705876607907,-2717.95,0.00046575,31]
[312444731,1705876607939,-500.0,0.00046575,31]
[312444732,1705876607971,-671.9,0.00046575,31]
[312444733,1705876608008,-500.0,0.00046575,31]
[312444734,1705876608042,-3818.85,0.00046575,31]
[312444735,1705876608077,-576.78,0.00046575,31]
[312444736,1705876608111,-685.5,0.00046575,31]
[312444737,1705876608145,-1834.73,0.00046575,31]
[312444738,1705876608180,-782.28,0.00046575,31]
[312444739,1705876608216,-801.69,0.00046575,31]
[312444740,1705876608250,-7874.08,0.00046575,31]
[312444741,1705876608284,-508.28,0.00046575,31]
[312444742,1705876608317,-1665.66,0.00046575,31]
[312444743,1705876608351,-1435.39,0.00046575,31]
[312444744,1705876608386,-500.0,0.00046575,31]
[312444745,1705876608421,-3052.12,0.00046575,31]
[312444746,1705876608455,-1882.97,0.00046575,31]
[312444747,1705876608488,-500.0,0.00046575,31]
[312444748,1705876608521,-670.83,0.00046575,31]
[312444749,1705876608555,-1653.87,0.00046575,31]
[312444750,1705876608588,-500.0,0.00046575,31]
[312444751,1705876608623,-705.2,0.00046575,31]
[312444752,1705876608657,-782.76,0.00046575,31]
[312444753,1705876608691,-500.0,0.00046575,31]
[312444754,1705876608724,-500.0,0.00046575,31]
[312444755,1705876608758,-794.26,0.00046575,31]
[312444756,1705876608793,-711.05,0.00046575,31]
[312444757,1705876608827,-500.0,0.00046575,31]
[312444758,1705876608863,-1594.26,0.00046575,31]
[312444759,1705876608897,-3948.71,0.00046575,31]
[312444760,1705876608932,-1147.94,0.00046575,31]
[312444761,1705876608965,-500.0,0.00046575,31]
[312444762,1705876608999,-2653.24,0.00046575,31]
[312444763,1705876609033,-1622.79,0.00046575,31]
[312444764,1705876609068,-887.82,0.00046575,31]
[312444765,1705876609108,-2192.06,0.00046575,31]
[312444766,1705876609143,-500.19,0.00046575,31]
[312444767,1705876609178,-4489.98,0.00046575,31]
[312444768,1705876609212,-981.16,0.00046575,31]
[312444769,1705876609251,-500.0,0.00046575,31]